[Event "*** Titled Tuesday 3|2 Blitz"]
[Site "Chess.com"]
[Date "2016.06.07"]
[Round "4"]
[White "OldweakGM"]
[Black "MaestroASK"]
[Result "1-0"]
[WhiteElo "2617"]
[BlackElo "2453"]
[TimeControl "180+2"]
[EndTime "17:51:02 PDT"]
[Termination "OldweakGM won by checkmate"]

1. Nf3 {[%clk 0:02:51.8]} 1... d6 {[%clk 0:02:59.9]} 2. d4 {[%clk 0:02:53]} 2...
g6 {[%clk 0:03:01.8]} 3. e4 {[%clk 0:02:53.1]} 3... Bg7 {[%clk 0:03:03.2]} 4.
Bc4 {[%clk 0:02:54.5]} 4... e6 {[%clk 0:03:03.5]} 5. O-O {[%clk 0:02:55.1]} 5...
Ne7 {[%clk 0:03:04.4]} 6. c3 {[%clk 0:02:56.5]} 6... a6 {[%clk 0:03:04.1]} 7.
Re1 {[%clk 0:02:57.2]} 7... h6 {[%clk 0:03:03.1]} 8. Nbd2 {[%clk 0:02:57.2]}
8... Nd7 {[%clk 0:03:03.2]} 9. a4 {[%clk 0:02:57.9]} 9... b6 {[%clk 0:03:03.7]}
10. Nf1 {[%clk 0:02:58.9]} 10... Bb7 {[%clk 0:03:04.2]} 11. Ng3 {[%clk
0:03:00.3]} 11... O-O {[%clk 0:03:03.3]} 12. Bb3 {[%clk 0:03:00.9]} 12... Kh7
{[%clk 0:03:00.1]} 13. h3 {[%clk 0:02:58.6]} 13... Nf6 {[%clk 0:02:53.7]} 14.
Bf4 {[%clk 0:02:57.9]} 14... g5 {[%clk 0:02:50]} 15. Bd2 {[%clk 0:02:28.7]}
15... Ng6 {[%clk 0:02:49]} 16. Bc2 {[%clk 0:02:29]} 16... e5 {[%clk 0:02:46.1]}
17. Nf5 {[%clk 0:02:29.8]} 17... Bc8 {[%clk 0:02:44]} 18. g3 {[%clk 0:02:29.2]}
18... Re8 {[%clk 0:02:42]} 19. h4 {[%clk 0:02:29.3]} 19... g4 {[%clk 0:02:36.7]}
20. Nh2 {[%clk 0:02:30.3]} 20... h5 {[%clk 0:02:35.5]} 21. Bg5 {[%clk
0:02:28.1]} 21... exd4 {[%clk 0:02:28.4]} 22. cxd4 {[%clk 0:02:25.1]} 22... Bxf5
{[%clk 0:02:25.2]} 23. exf5 {[%clk 0:02:25.2]} 23... Rxe1+ {[%clk 0:02:23.7]}
24. Qxe1 {[%clk 0:02:25.1]} 24... Ne7 {[%clk 0:02:23]} 25. f3 {[%clk 0:02:20.3]}
25... gxf3 {[%clk 0:02:18.7]} 26. Qd1 {[%clk 0:02:10.9]} 26... Neg8 {[%clk
0:02:13.9]} 27. Nxf3 {[%clk 0:02:07.2]} 27... Qd7 {[%clk 0:02:11]} 28. Bf4
{[%clk 0:02:05.1]} 28... Nh6 {[%clk 0:02:05.5]} 29. Ng5+ {[%clk 0:01:55.9]}
29... Kg8 {[%clk 0:02:05.7]} 30. Bb3 {[%clk 0:01:57.2]} 30... Rf8 {[%clk
0:02:03.6]} 31. Ne6 {[%clk 0:01:55]} 31... Re8 {[%clk 0:01:59.1]} 32. Qd3 {[%clk
0:01:32.5]} 32... Nxf5 {[%clk 0:01:15.7]} 33. Nxg7 {[%clk 0:01:19.7]} 33... Nxg7
{[%clk 0:01:07.3]} 34. Qg6 {[%clk 0:01:17.7]} 34... Ng4 {[%clk 0:00:56.2]} 35.
Rf1 {[%clk 0:01:10.5]} 35... d5 {[%clk 0:00:50.3]} 36. Qg5 {[%clk 0:01:11.3]}
36... c6 {[%clk 0:00:45]} 37. Bc2 {[%clk 0:01:10]} 37... Re2 {[%clk 0:00:42]}
38. Bd3 {[%clk 0:01:08.2]} 38... Re8 {[%clk 0:00:38.9]} 39. Bd2 {[%clk 0:00:58]}
39... b5 {[%clk 0:00:33.3]} 40. a5 {[%clk 0:00:57.8]} 40... Qe7 {[%clk
0:00:33.6]} 41. Qf4 {[%clk 0:00:51.7]} 41... Rf8 {[%clk 0:00:17.6]} 42. Re1
{[%clk 0:00:51.2]} 42... Qd7 {[%clk 0:00:18.6]} 43. Bb4 {[%clk 0:00:49.9]} 43...
Re8 {[%clk 0:00:19.6]} 44. Rf1 {[%clk 0:00:51.2]} 44... Qe6 {[%clk 0:00:19.5]}
45. Re1 {[%clk 0:00:50.2]} 45... Qd7 {[%clk 0:00:20.2]} 46. Rf1 {[%clk
0:00:48.7]} 46... Qe6 {[%clk 0:00:21.3]} 47. Bd2 {[%clk 0:00:50.3]} 47... Qd7
{[%clk 0:00:20.6]} 48. Rc1 {[%clk 0:00:50.8]} 48... Qe6 {[%clk 0:00:21.3]} 49.
Qc7 {[%clk 0:00:50.5]} 49... Rc8 {[%clk 0:00:21.1]} 50. Qb7 {[%clk 0:00:49.5]}
50... Nf5 {[%clk 0:00:17]} 51. Re1 {[%clk 0:00:47.8]} 51... Nfe3 {[%clk
0:00:17.7]} 52. Re2 {[%clk 0:00:40.1]} 52... Re8 {[%clk 0:00:17.8]} 53. Qc7
{[%clk 0:00:40.8]} 53... Qf6 {[%clk 0:00:17.3]} 54. Qf4 {[%clk 0:00:39.5]} 54...
Qxf4 {[%clk 0:00:17.7]} 55. gxf4 {[%clk 0:00:40.7]} 55... Kf8 {[%clk 0:00:17.7]}
56. f5 {[%clk 0:00:41.1]} 56... f6 {[%clk 0:00:17.3]} 57. Bb4+ {[%clk
0:00:39.9]} 57... Kf7 {[%clk 0:00:18]} 58. Bd6 {[%clk 0:00:40.8]} 58... Nc4
{[%clk 0:00:16.3]} 59. Bf4 {[%clk 0:00:38.8]} 59... Rxe2 {[%clk 0:00:16.2]} 60.
Bxe2 {[%clk 0:00:40.1]} 60... Nxb2 {[%clk 0:00:16.8]} 61. Kf1 {[%clk 0:00:38.2]}
61... Nc4 {[%clk 0:00:17.6]} 62. Bf3 {[%clk 0:00:39.3]} 62... Nxa5 {[%clk
0:00:17.2]} 63. Ke2 {[%clk 0:00:40.1]} 63... Nc4 {[%clk 0:00:18]} 64. Kd3 {[%clk
0:00:41.5]} 64... a5 {[%clk 0:00:19]} 65. Kc3 {[%clk 0:00:43.1]} 65... b4+
{[%clk 0:00:19]} 66. Kb3 {[%clk 0:00:44.4]} 66... Kg7 {[%clk 0:00:19.2]} 67. Ka4
{[%clk 0:00:45.6]} 67... Nge3 {[%clk 0:00:18.3]} 68. Bxh5 {[%clk 0:00:46]} 68...
Nxf5 {[%clk 0:00:19.1]} 69. Be8 {[%clk 0:00:45.7]} 69... Nxd4 {[%clk 0:00:19.6]}
70. h5 {[%clk 0:00:47]} 70... Nb6+ {[%clk 0:00:19.1]} 71. Kxa5 {[%clk
0:00:47.6]} 71... b3 {[%clk 0:00:20.3]} 72. Kxb6 {[%clk 0:00:45]} 72... b2
{[%clk 0:00:20.9]} 73. Bg6 {[%clk 0:00:46.2]} 73... f5 {[%clk 0:00:21.9]} 74.
Be5+ {[%clk 0:00:47.5]} 74... Kf8 {[%clk 0:00:19.2]} 75. h6 {[%clk 0:00:44.7]}
75... b1=Q+ {[%clk 0:00:20]} 76. Kc7 {[%clk 0:00:46.1]} 76... Qg1 {[%clk
0:00:15.5]} 77. Bd6+ {[%clk 0:00:43]} 77... Kg8 {[%clk 0:00:15.6]} 78. h7+
{[%clk 0:00:44.3]} 78... Kg7 {[%clk 0:00:13.7]} 79. Be5+ {[%clk 0:00:45.6]}
79... Kxg6 {[%clk 0:00:14.9]} 80. h8=Q {[%clk 0:00:46.9]} 80... Nb5+ {[%clk
0:00:11.4]} 81. Kxc6 {[%clk 0:00:47.1]} 81... Na7+ {[%clk 0:00:12.3]} 82. Kd7
{[%clk 0:00:48.5]} 82... Qg4 {[%clk 0:00:10.5]} 83. Qg8+ {[%clk 0:00:47.5]}
83... Kh5 {[%clk 0:00:11.4]} 84. Qh7+ {[%clk 0:00:48.5]} 84... Kg5 {[%clk
0:00:12.5]} 85. Ke7 {[%clk 0:00:49.9]} 85... Qh5 {[%clk 0:00:11.2]} 86. Qg7+
{[%clk 0:00:45]} 86... Qg6 {[%clk 0:00:11.9]} 87. Bf6+ {[%clk 0:00:41.5]} 87...
Kh5 {[%clk 0:00:13]} 88. Qh8+ {[%clk 0:00:42.9]} 88... Kg4 {[%clk 0:00:14]} 89.
Qh4+ {[%clk 0:00:43.9]} 89... Kf3 {[%clk 0:00:15.2]} 90. Qh3+ {[%clk 0:00:44.9]}
90... Ke4 {[%clk 0:00:16.2]} 91. Qh1+ {[%clk 0:00:44.6]} 91... Kf4 {[%clk
0:00:17]} 92. Qf1+ {[%clk 0:00:45.5]} 92... Ke4 {[%clk 0:00:17.7]} 93. Qe2+
{[%clk 0:00:45.3]} 93... Kf4 {[%clk 0:00:18.1]} 94. Be5+ {[%clk 0:00:45.9]}
94... Kg5 {[%clk 0:00:18.9]} 95. Qg2+ {[%clk 0:00:46.8]} 95... Kh5 {[%clk
0:00:19.9]} 96. Qh2+ {[%clk 0:00:45.3]} 96... Kg5 {[%clk 0:00:20.7]} 97. Bf4+
{[%clk 0:00:46]} 97... Kg4 {[%clk 0:00:20.2]} 98. Qg3+ {[%clk 0:00:47.3]} 98...
Kh5 {[%clk 0:00:20.7]} 99. Qh3# {[%clk 0:00:48.7]} 1-0

[Event "*** Titled Tuesday 3|2 Blitz"]
[Site "Chess.com"]
[Date "2016.06.07"]
[Round "5"]
[White "IIIlllII1llIl"]
[Black "OldweakGM"]
[Result "1-0"]
[WhiteElo "2472"]
[BlackElo "2605"]
[TimeControl "180+2"]
[EndTime "17:55:44 PDT"]
[Termination "IIIlllII1llIl won by resignation"]

1. e4 {[%clk 0:03:01.1]} 1... c5 {[%clk 0:02:58.7]} 2. c3 {[%clk 0:03:02.3]}
2... Nf6 {[%clk 0:02:59.5]} 3. e5 {[%clk 0:03:03.6]} 3... Nd5 {[%clk 0:03:01.1]}
4. Nf3 {[%clk 0:03:05.3]} 4... d6 {[%clk 0:03:01.5]} 5. Bc4 {[%clk 0:03:05.8]}
5... Nb6 {[%clk 0:03:01.8]} 6. Bb3 {[%clk 0:03:07]} 6... c4 {[%clk 0:03:03.3]}
7. Bc2 {[%clk 0:03:07.7]} 7... Nc6 {[%clk 0:03:04.7]} 8. exd6 {[%clk 0:03:08]}
8... Qxd6 {[%clk 0:03:06.3]} 9. O-O {[%clk 0:03:07.2]} 9... Bg4 {[%clk
0:03:07.1]} 10. h3 {[%clk 0:03:06.4]} 10... Bh5 {[%clk 0:03:07.5]} 11. Re1
{[%clk 0:02:48.5]} 11... e6 {[%clk 0:03:07.4]} 12. Na3 {[%clk 0:02:31.8]} 12...
Qd7 {[%clk 0:02:50.4]} 13. Qe2 {[%clk 0:02:27.3]} 13... Bxa3 {[%clk 0:02:49.8]}
14. bxa3 {[%clk 0:02:27.1]} 14... O-O {[%clk 0:02:51.3]} 15. Bxh7+ {[%clk
0:01:42.6]} 15... Kxh7 {[%clk 0:02:52.1]} 16. Ng5+ {[%clk 0:01:43.6]} 16... Kg6
{[%clk 0:02:53.6]} 17. Qe4+ {[%clk 0:01:43.8]} 17... f5 {[%clk 0:02:47.7]} 18.
Qh4 {[%clk 0:01:40.7]} 18... Rh8 {[%clk 0:02:38.1]} 19. Rxe6+ {[%clk 0:01:39.8]}
19... Qxe6 {[%clk 0:02:34.4]} 20. Nxe6 {[%clk 0:01:41.7]} 20... Rae8 {[%clk
0:02:35.8]} 21. Nf4+ {[%clk 0:01:40.8]} 21... Kf7 {[%clk 0:02:36.3]} 22. Nxh5
{[%clk 0:01:40.6]} 22... Ne5 {[%clk 0:02:37]} 23. d4 {[%clk 0:01:30.2]} 23...
cxd3 {[%clk 0:02:35.2]} 24. Qg5 {[%clk 0:01:15.6]} 1-0

[Event "*** Titled Tuesday 3|2 Blitz"]
[Site "Chess.com"]
[Date "2016.06.07"]
[Round "5"]
[White "MaestroASK"]
[Black "twitchTriniCupid"]
[Result "1-0"]
[WhiteElo "2456"]
[BlackElo "2123"]
[TimeControl "180+2"]
[EndTime "17:58:19 PDT"]
[Termination "MaestroASK won by resignation"]

1. d4 {[%clk 0:03:00.6]} 1... c6 {[%clk 0:03:01.3]} 2. c3 {[%clk 0:03:00.2]}
2... d6 {[%clk 0:03:01.4]} 3. g3 {[%clk 0:02:59.4]} 3... Nf6 {[%clk 0:03:02.3]}
4. Bg2 {[%clk 0:03:00.1]} 4... e5 {[%clk 0:03:00.8]} 5. dxe5 {[%clk 0:03:00.6]}
5... dxe5 {[%clk 0:03:02.7]} 6. Qxd8+ {[%clk 0:03:01.3]} 6... Kxd8 {[%clk
0:03:04.6]} 7. e4 {[%clk 0:03:01.9]} 7... Nbd7 {[%clk 0:02:59.2]} 8. f3 {[%clk
0:03:02.6]} 8... Nc5 {[%clk 0:02:58.9]} 9. Bf1 {[%clk 0:03:00.4]} 9... Kc7
{[%clk 0:02:51.6]} 10. Nd2 {[%clk 0:03:00.9]} 10... a5 {[%clk 0:02:51.3]} 11.
Bc4 {[%clk 0:02:54.5]} 11... Ne6 {[%clk 0:02:48.9]} 12. a4 {[%clk 0:02:54.2]}
12... Bc5 {[%clk 0:02:48.1]} 13. Nh3 {[%clk 0:02:54.4]} 13... h6 {[%clk
0:02:46.4]} 14. Ke2 {[%clk 0:02:54.6]} 14... Rd8 {[%clk 0:02:44.8]} 15. Nf2
{[%clk 0:02:54.9]} 15... Bd7 {[%clk 0:02:34.9]} 16. Nd3 {[%clk 0:02:55.2]} 16...
Bd6 {[%clk 0:02:32.4]} 17. Ba2 {[%clk 0:02:53.5]} 17... b5 {[%clk 0:02:24.9]}
18. axb5 {[%clk 0:02:47.8]} 18... cxb5 {[%clk 0:02:26.8]} 19. Rd1 {[%clk
0:02:47.3]} 19... Rdb8 {[%clk 0:02:07.5]} 20. Nf1 {[%clk 0:02:47.6]} 20... g6
{[%clk 0:01:58.9]} 21. Bxh6 {[%clk 0:02:43.4]} 21... g5 {[%clk 0:01:59.4]} 22.
Bxe6 {[%clk 0:02:42.4]} 22... Bxe6 {[%clk 0:01:59.6]} 23. Bxg5 {[%clk
0:02:43.4]} 23... Nd7 {[%clk 0:01:55.8]} 24. Be3 {[%clk 0:02:43.3]} 24... f5
{[%clk 0:01:50.6]} 25. exf5 {[%clk 0:02:41.1]} 25... Bxf5 {[%clk 0:01:51.7]} 26.
Nd2 {[%clk 0:02:41.4]} 26... Rh8 {[%clk 0:01:47.1]} 27. Rh1 {[%clk 0:02:40.7]}
27... Nf6 {[%clk 0:01:15.6]} 28. Nf2 {[%clk 0:02:38.7]} 28... Nd5 {[%clk
0:01:15.2]} 29. Nde4 {[%clk 0:02:32.1]} 29... Nxe3 {[%clk 0:01:10.4]} 30. Kxe3
{[%clk 0:02:32.7]} 30... Be7 {[%clk 0:01:10]} 31. h4 {[%clk 0:02:32.5]} 31...
Kc6 {[%clk 0:00:46.3]} 32. Nd3 {[%clk 0:02:30]} 32... Kd5 {[%clk 0:00:40.2]} 33.
Rad1 {[%clk 0:02:27.9]} 33... Ke6 {[%clk 0:00:40.3]} 34. Ndc5+ {[%clk
0:02:23.2]} 34... Kf7 {[%clk 0:00:40.5]} 35. Nd6+ {[%clk 0:02:21.8]} 35... Bxd6
{[%clk 0:00:31.8]} 36. Rxd6 {[%clk 0:02:21.1]} 36... Rad8 {[%clk 0:00:32.9]} 37.
Rxd8 {[%clk 0:02:18.5]} 37... Rxd8 {[%clk 0:00:33.4]} 38. g4 {[%clk 0:02:19.4]}
38... Bh7 {[%clk 0:00:32.4]} 39. h5 {[%clk 0:02:20.4]} 39... b4 {[%clk
0:00:33.3]} 40. cxb4 {[%clk 0:02:20.2]} 40... axb4 {[%clk 0:00:34]} 41. Ra1
{[%clk 0:02:18.7]} 41... Rc8 {[%clk 0:00:33.7]} 42. Ra7+ {[%clk 0:02:18.9]}
42... Kg8 {[%clk 0:00:33.2]} 43. Nd7 {[%clk 0:02:18.3]} 1-0

[Event "*** Titled Tuesday 3|2 Blitz"]
[Site "Chess.com"]
[Date "2016.06.07"]
[Round "5"]
[White "platy3"]
[Black "ShimanovAlex"]
[Result "1/2-1/2"]
[WhiteElo "2690"]
[BlackElo "2655"]
[TimeControl "180+2"]
[EndTime "17:58:20 PDT"]
[Termination "Game drawn by agreement"]

1. e4 {[%clk 0:03:01.9]} 1... c6 {[%clk 0:03:00.5]} 2. Nf3 {[%clk 0:03:02.3]}
2... d5 {[%clk 0:03:01.4]} 3. Nc3 {[%clk 0:03:04.1]} 3... Bg4 {[%clk 0:03:02.5]}
4. h3 {[%clk 0:03:04.1]} 4... Bxf3 {[%clk 0:03:03.7]} 5. Qxf3 {[%clk 0:03:05.7]}
5... e6 {[%clk 0:03:05.1]} 6. d4 {[%clk 0:03:06.6]} 6... dxe4 {[%clk 0:03:06]}
7. Qxe4 {[%clk 0:03:08]} 7... Nd7 {[%clk 0:03:05]} 8. g3 {[%clk 0:03:08.3]} 8...
g6 {[%clk 0:03:05.9]} 9. Bg2 {[%clk 0:03:09.1]} 9... Bg7 {[%clk 0:03:07.2]} 10.
Qd3 {[%clk 0:03:02.6]} 10... Nb6 {[%clk 0:03:01.2]} 11. Be3 {[%clk 0:03:01]}
11... Nd5 {[%clk 0:03:01.8]} 12. Nxd5 {[%clk 0:02:57.9]} 12... cxd5 {[%clk
0:03:02.6]} 13. Qb3 {[%clk 0:02:24.2]} 13... Qd7 {[%clk 0:03:00.1]} 14. c4
{[%clk 0:02:22.3]} 14... Ne7 {[%clk 0:03:01]} 15. O-O {[%clk 0:02:21.8]} 15...
O-O {[%clk 0:02:58.6]} 16. Rac1 {[%clk 0:02:20.9]} 16... Rac8 {[%clk 0:02:53.7]}
17. Rfd1 {[%clk 0:02:18.3]} 17... dxc4 {[%clk 0:02:41.3]} 18. Rxc4 {[%clk
0:02:18.1]} 18... Rxc4 {[%clk 0:02:42.1]} 19. Qxc4 {[%clk 0:02:20]} 19... Rc8
{[%clk 0:02:41.7]} 20. Qb3 {[%clk 0:02:20.7]} 20... Nd5 {[%clk 0:02:42.5]} 21.
Bxd5 {[%clk 0:02:18.3]} 21... Qxd5 {[%clk 0:02:40.6]} 22. Qxd5 {[%clk
0:02:18.1]} 22... exd5 {[%clk 0:02:42.5]} 23. Rd3 {[%clk 0:02:19.3]} 23... a6
{[%clk 0:02:36.4]} 24. Rc3 {[%clk 0:02:13.6]} 24... Rc4 {[%clk 0:02:33.9]} 25.
Kf1 {[%clk 0:02:06.5]} 25... f5 {[%clk 0:02:34.5]} 26. Ke2 {[%clk 0:02:04.5]}
26... Rxc3 {[%clk 0:02:31.5]} 27. bxc3 {[%clk 0:02:04.8]} 27... Kf7 {[%clk
0:02:33]} 28. Kd3 {[%clk 0:02:05.4]} 28... b5 {[%clk 0:02:34]} 29. g4 {[%clk
0:02:01.7]} 29... fxg4 {[%clk 0:02:34]} 30. hxg4 {[%clk 0:02:02.6]} 30... h5
{[%clk 0:02:35.6]} 31. f3 {[%clk 0:02:02.7]} 31... Ke6 {[%clk 0:02:34.8]} 32.
Bf4 {[%clk 0:02:02.6]} 32... Bf8 {[%clk 0:02:31.5]} 33. Ke3 {[%clk 0:01:56]}
33... Ba3 {[%clk 0:02:31.9]} 34. Kf2 {[%clk 0:01:55.8]} 34... Be7 {[%clk
0:02:01.5]} 35. Bd2 {[%clk 0:01:52.5]} 35... Bd6 {[%clk 0:02:02]} 36. Kg2 {[%clk
0:01:51.9]} 36... a5 {[%clk 0:01:40.7]} 37. Kh3 {[%clk 0:01:49.6]} 37... Be7
{[%clk 0:01:41]} 38. Kg3 {[%clk 0:01:44.5]} 38... b4 {[%clk 0:01:35.9]} 39. cxb4
{[%clk 0:01:41.3]} 39... axb4 {[%clk 0:01:37.8]} 40. Kh3 {[%clk 0:01:42.1]}
40... Kd7 {[%clk 0:01:38.9]} 41. f4 {[%clk 0:01:34.9]} 41... hxg4+ {[%clk
0:01:25.3]} 42. Kxg4 {[%clk 0:01:35.9]} 42... Kc6 {[%clk 0:01:26.8]} 43. f5
{[%clk 0:01:36.1]} 43... gxf5+ {[%clk 0:01:18]} 44. Kxf5 {[%clk 0:01:38]} 44...
Bf8 {[%clk 0:01:17.1]} 45. Ke6 {[%clk 0:01:38.6]} 45... Bg7 {[%clk 0:01:12]} 46.
Bxb4 {[%clk 0:01:38.7]} 1/2-1/2

[Event "*** Titled Tuesday 3|2 Blitz"]
[Site "Chess.com"]
[Date "2016.06.07"]
[Round "5"]
[White "1random"]
[Black "saraswathii"]
[Result "1/2-1/2"]
[WhiteElo "2114"]
[BlackElo "1971"]
[TimeControl "180+2"]
[EndTime "17:58:26 PDT"]
[Termination "Game drawn by stalemate"]

1. e4 {[%clk 0:02:55.9]} 1... c5 {[%clk 0:02:48.3]} 2. Nf3 {[%clk 0:02:55.8]}
2... e6 {[%clk 0:02:48.3]} 3. d4 {[%clk 0:02:57.1]} 3... cxd4 {[%clk 0:02:48.6]}
4. Nxd4 {[%clk 0:02:59]} 4... Nf6 {[%clk 0:02:49.1]} 5. Nc3 {[%clk 0:02:56.4]}
5... Nc6 {[%clk 0:02:48.9]} 6. Ndb5 {[%clk 0:02:48.4]} 6... Bb4 {[%clk
0:02:48.5]} 7. a3 {[%clk 0:02:49.4]} 7... Bxc3+ {[%clk 0:02:48.8]} 8. Nxc3
{[%clk 0:02:51.3]} 8... d5 {[%clk 0:02:49.8]} 9. exd5 {[%clk 0:02:51.4]} 9...
exd5 {[%clk 0:02:50.7]} 10. Bd3 {[%clk 0:02:52.9]} 10... d4 {[%clk 0:02:51.3]}
11. Ne2 {[%clk 0:02:48.8]} 11... O-O {[%clk 0:02:48.3]} 12. O-O {[%clk
0:02:49.4]} 12... h6 {[%clk 0:02:48]} 13. Bf4 {[%clk 0:02:34.7]} 13... Bg4
{[%clk 0:02:47.8]} 14. Qd2 {[%clk 0:02:34.7]} 14... Bxe2 {[%clk 0:02:42.1]} 15.
Bxe2 {[%clk 0:02:32.9]} 15... Ne4 {[%clk 0:02:41.8]} 16. Qd1 {[%clk 0:02:31]}
16... Qf6 {[%clk 0:02:39.9]} 17. Bg3 {[%clk 0:02:31.9]} 17... Nxg3 {[%clk
0:02:36.8]} 18. hxg3 {[%clk 0:02:33.8]} 18... Rfe8 {[%clk 0:02:35]} 19. Bf3
{[%clk 0:02:34]} 19... Ne5 {[%clk 0:02:32.5]} 20. b4 {[%clk 0:02:30.7]} 20...
Re7 {[%clk 0:02:25.2]} 21. Be4 {[%clk 0:02:25.6]} 21... Rd8 {[%clk 0:02:23.4]}
22. f4 {[%clk 0:02:24.3]} 22... Nc4 {[%clk 0:02:23.6]} 23. Bd3 {[%clk
0:02:23.1]} 23... Ne3 {[%clk 0:02:24.2]} 24. Qd2 {[%clk 0:02:22.5]} 24... Nxf1
{[%clk 0:02:24.8]} 25. Rxf1 {[%clk 0:02:24.4]} 25... Re3 {[%clk 0:02:25.4]} 26.
Qf2 {[%clk 0:02:08.1]} 26... Rde8 {[%clk 0:02:23.3]} 27. Qd2 {[%clk 0:02:08.6]}
27... Rxg3 {[%clk 0:02:22.7]} 28. Be2 {[%clk 0:01:59.7]} 28... Qe6 {[%clk
0:02:11.3]} 29. Bf3 {[%clk 0:01:59.8]} 29... Qe3+ {[%clk 0:02:10.5]} 30. Rf2
{[%clk 0:02:01.1]} 30... b6 {[%clk 0:01:51.5]} 31. Kf1 {[%clk 0:01:45.5]} 31...
Rg6 {[%clk 0:01:43.2]} 32. Qd1 {[%clk 0:01:41.1]} 32... Rge6 {[%clk 0:01:39.1]}
33. Re2 {[%clk 0:01:37.8]} 33... Qxf4 {[%clk 0:01:39.6]} 34. Rxe6 {[%clk
0:01:38.3]} 34... Rxe6 {[%clk 0:01:39.3]} 35. Qd3 {[%clk 0:01:40.2]} 35... Qc1+
{[%clk 0:01:38.6]} 36. Bd1 {[%clk 0:01:39.8]} 36... Qe3 {[%clk 0:01:32.7]} 37.
Be2 {[%clk 0:01:37.6]} 37... Qxd3 {[%clk 0:01:33.3]} 38. Bxd3 {[%clk 0:01:39.1]}
38... Re3 {[%clk 0:01:33.3]} 39. Kf2 {[%clk 0:01:39.4]} 39... Kf8 {[%clk
0:01:33.7]} 40. Bf5 {[%clk 0:01:39.1]} 40... Rxa3 {[%clk 0:01:33.7]} 41. b5
{[%clk 0:01:37.7]} 41... Ke7 {[%clk 0:01:33.9]} 42. Bd3 {[%clk 0:01:37.5]} 42...
Rxd3 {[%clk 0:01:33.7]} 43. cxd3 {[%clk 0:01:39.4]} 43... Kd6 {[%clk 0:01:35]}
44. Kf3 {[%clk 0:01:40.2]} 44... Kc5 {[%clk 0:01:36.3]} 45. Ke4 {[%clk
0:01:42.1]} 45... g6 {[%clk 0:01:33.7]} 46. Ke5 {[%clk 0:01:43.1]} 46... f5
{[%clk 0:01:32.7]} 47. Kf6 {[%clk 0:01:41.6]} 47... Kxb5 {[%clk 0:01:32.2]} 48.
Kxg6 {[%clk 0:01:43.1]} 48... a5 {[%clk 0:01:34]} 49. Kxf5 {[%clk 0:01:42.9]}
49... a4 {[%clk 0:01:35.9]} 50. Kg6 {[%clk 0:01:44.8]} 50... a3 {[%clk
0:01:36.7]} 51. Kxh6 {[%clk 0:01:46.7]} 51... a2 {[%clk 0:01:38.6]} 52. g4
{[%clk 0:01:48.6]} 52... a1=Q {[%clk 0:01:40.5]} 53. g5 {[%clk 0:01:50.5]} 53...
Qd1 {[%clk 0:01:41.3]} 54. Kg7 {[%clk 0:01:52]} 54... Qxd3 {[%clk 0:01:42.4]}
55. g6 {[%clk 0:01:53.9]} 55... Qxg6+ {[%clk 0:01:43.4]} 56. Kh8 {[%clk
0:01:54.8]} 56... d3 {[%clk 0:01:45.3]} 1/2-1/2

[Event "*** Titled Tuesday 3|2 Blitz"]
[Site "Chess.com"]
[Date "2016.06.07"]
[Round "5"]
[White "dretch"]
[Black "Evgeny_Levin"]
[Result "1-0"]
[WhiteElo "2638"]
[BlackElo "2682"]
[TimeControl "180+2"]
[EndTime "17:58:49 PDT"]
[Termination "dretch won on time"]

1. d4 {[%clk 0:03:01.8]} 1... Nf6 {[%clk 0:02:59.9]} 2. c4 {[%clk 0:03:02.6]}
2... e6 {[%clk 0:03:00.9]} 3. Nc3 {[%clk 0:03:03.8]} 3... Bb4 {[%clk 0:03:00.1]}
4. Qc2 {[%clk 0:03:04.8]} 4... O-O {[%clk 0:03:00.1]} 5. e4 {[%clk 0:03:05]}
5... d6 {[%clk 0:02:49.7]} 6. a3 {[%clk 0:03:06]} 6... Bxc3+ {[%clk 0:02:47.9]}
7. bxc3 {[%clk 0:03:07.9]} 7... e5 {[%clk 0:02:48.4]} 8. Bd3 {[%clk 0:03:08.8]}
8... c5 {[%clk 0:02:47]} 9. Ne2 {[%clk 0:03:08.3]} 9... Nc6 {[%clk 0:02:46.5]}
10. d5 {[%clk 0:03:05.4]} 10... Na5 {[%clk 0:02:38.5]} 11. O-O {[%clk
0:03:04.1]} 11... b6 {[%clk 0:02:14.1]} 12. Ng3 {[%clk 0:03:02.3]} 12... Ba6
{[%clk 0:02:08.9]} 13. f4 {[%clk 0:03:02.1]} 13... Nd7 {[%clk 0:02:00.6]} 14.
Nf5 {[%clk 0:03:00.4]} 14... Bxc4 {[%clk 0:01:53]} 15. Bxc4 {[%clk 0:02:54.7]}
15... Nxc4 {[%clk 0:01:54.9]} 16. Qe2 {[%clk 0:02:55.9]} 16... b5 {[%clk
0:01:44.7]} 17. a4 {[%clk 0:02:49]} 17... exf4 {[%clk 0:01:37.2]} 18. axb5
{[%clk 0:02:47.6]} 18... Nde5 {[%clk 0:01:37.8]} 19. Bxf4 {[%clk 0:02:47.4]}
19... f6 {[%clk 0:01:14]} 20. Ra6 {[%clk 0:02:43.6]} 20... Qb8 {[%clk
0:00:56.4]} 21. Bxe5 {[%clk 0:02:40.9]} 21... Nxe5 {[%clk 0:00:58.3]} 22. Nxd6
{[%clk 0:02:35.3]} 22... Rd8 {[%clk 0:00:55.1]} 23. Nf5 {[%clk 0:02:35.5]} 23...
c4 {[%clk 0:00:53.9]} 24. Rb1 {[%clk 0:02:33.5]} 24... Rd7 {[%clk 0:00:49.6]}
25. Qe3 {[%clk 0:02:22.4]} 25... Rb7 {[%clk 0:00:43.4]} 26. Qg3 {[%clk
0:02:16.5]} 26... Kh8 {[%clk 0:00:40.9]} 27. h3 {[%clk 0:02:12.3]} 27... Qf8
{[%clk 0:00:33.4]} 28. Kh2 {[%clk 0:02:04.8]} 28... Rab8 {[%clk 0:00:32.8]} 29.
Nd4 {[%clk 0:02:04.5]} 29... Qc5 {[%clk 0:00:24.5]} 30. Rba1 {[%clk 0:02:03.5]}
30... h6 {[%clk 0:00:21]} 31. Nc6 {[%clk 0:01:54.9]} 31... Rg8 {[%clk
0:00:20.9]} 32. Nxe5 {[%clk 0:01:55]} 32... fxe5 {[%clk 0:00:22.8]} 33. Qxe5
{[%clk 0:01:55.4]} 33... Rb6 {[%clk 0:00:17.4]} 34. Rxa7 {[%clk 0:01:47.9]}
34... Rg6 {[%clk 0:00:15.6]} 35. R7a6 {[%clk 0:01:41.4]} 35... Rxa6 {[%clk
0:00:05.2]} 36. bxa6 {[%clk 0:01:42.3]} 36... Ra8 {[%clk 0:00:04.4]} 37. a7
{[%clk 0:01:40.9]} 1-0